bitfinex/quotes_BTCUSD_20241117
["timestamp","ask_amount","ask_price","bid_price","bid_amount"]
[1731820071017,0.0008556,90864.0,90859.0,0.110059]
[1731820071284,0.0008556,90864.0,90852.0,0.220138]
[1731820071285,0.110058,90861.0,90852.0,0.220138]
[1731820071501,0.02059153,90863.0,90851.0,0.16546441]
[1731820071827,0.0008556,90864.0,90851.0,0.16546441]
[1731820071828,0.110057,90862.0,90856.0,0.110064]
[1731820072001,0.102057,90862.0,90856.0,0.110063]
[1731820072218,0.0008556,90864.0,90856.0,0.110063]
[1731820072219,0.02059734,90861.0,90856.0,0.110063]
[1731820072435,0.02059734,90860.0,90856.0,0.110063]
[1731820072661,0.02059734,90859.0,90856.0,0.110063]
[1731820072888,0.02059734,90858.0,90857.0,0.110062]
[1731820073115,0.02059734,90858.0,90854.0,0.220133]
[1731820073326,0.110058,90861.0,90855.0,0.110065]
[1731820073539,0.02060094,90860.0,90856.0,0.110064]
[1731820073756,0.02060094,90859.0,90856.0,0.140064]
[1731820073963,0.02060094,90858.0,90856.0,0.140064]
[1731820074176,0.02060094,90857.0,90856.0,0.140064]
[1731820074397,0.110058,90861.0,90856.0,0.140064]
[1731820074613,0.02060084,90857.0,90856.0,0.140064]
[1731820075760,0.02060084,90857.0,90856.0,0.03]
[1731820075761,0.21196384,90857.0,90856.0,0.03]
[1731820076414,0.32102639,90857.0,90856.0,0.03]
[1731820076624,0.110067,90853.0,90852.0,0.0017108]
[1731820076851,0.11281891,90853.0,90852.0,0.0017108]
[1731820077523,0.31318146,90853.0,90852.0,0.0017108]
[1731820077762,0.35892955,90853.0,90852.0,0.0017108]
[1731820078209,0.40269861,90853.0,90852.0,0.0017108]
[1731820078484,0.45628232,90853.0,90852.0,0.0017108]
[1731820078699,0.34221977,90853.0,90852.0,0.0017108]
[1731820078932,0.45128232,90853.0,90852.0,0.0017108]
[1731820080109,0.65482837,90853.0,90852.0,0.0017108]
[1731820080321,0.55628232,90853.0,90852.0,0.0017108]
[1731820081192,0.57004196,90853.0,90852.0,0.0017108]
[1731820081848,0.57004196,90853.0,90814.0,0.26565209]
[1731820081849,0.002,90841.0,90816.0,0.110111]
[1731820082072,0.18217775,90841.0,90817.0,0.110111]
[1731820082325,0.18217775,90841.0,90819.0,0.110108]
[1731820082543,0.18017775,90841.0,90819.0,0.220217]
[1731820082791,0.1800493,90841.0,90819.0,0.220217]
[1731820083007,0.1800493,90841.0,90822.0,0.110105]
[1731820083008,0.2129448,90841.0,90822.0,0.110105]
[1731820083207,0.1662897,90841.0,90814.0,0.220229]
[1731820083441,0.1662897,90841.0,90820.0,0.220214]
[1731820083656,0.1662897,90841.0,90814.0,0.220229]
[1731820083657,0.1662897,90841.0,90819.0,0.110108]
[1731820084106,0.1662897,90841.0,90813.0,0.220232]
[1731820084311,0.17656502,90841.0,90813.0,0.220232]
[1731820084526,0.17656502,90841.0,90821.0,0.110106]
[1731820084733,0.17656502,90841.0,90818.0,0.220218]
[1731820084734,0.1662897,90841.0,90823.0,0.110104]
[1731820085011,0.1662897,90841.0,90818.0,0.220218]
[1731820085012,0.17656502,90841.0,90822.0,0.110105]
[1731820085260,0.17656502,90841.0,90818.0,0.220218]
[1731820085261,0.17381262,90841.0,90827.0,0.220198]
[1731820085465,0.1635373,90841.0,90827.0,0.220198]
[1731820085681,0.1635373,90841.0,90839.0,0.03]
[1731820086616,0.16628933,90841.0,90839.0,0.03]
[1731820086824,0.2858373,90841.0,90839.0,0.03]
[1731820087492,0.110105,90822.0,90812.0,0.220235]
[1731820087691,0.02055973,90821.0,90816.0,0.110111]
[1731820087945,0.02055973,90820.0,90817.0,0.00171442]
[1731820088184,0.002,90855.0,90840.0,18.4961667]
[1731820088404,0.28411042,90841.0,90840.0,18.4961667]
[1731820088613,0.28411042,90841.0,90840.0,18.49788485]
[1731820092776,0.0811,90851.0,90840.0,18.49788485]
[1731820092994,0.16800039,90850.0,90840.0,18.49788485]
[1731820093199,0.110082,90841.0,90840.0,18.49788485]
[1731820093850,0.220145,90849.0,90840.0,18.49788485]
[1731820094058,0.11008,90843.0,90840.0,18.49788485]
[1731820094300,0.0027521,90849.0,90840.0,18.49788485]
[1731820094301,0.220145,90849.0,90840.0,18.49788485]
[1731820094523,0.220147,90848.0,90840.0,18.49788485]
[1731820094959,0.110082,90841.0,90840.0,18.49788485]
[1731820095631,0.240982,90841.0,90840.0,18.49788485]
[1731820096042,0.240982,90841.0,90840.0,18.49959585]
[1731820097502,0.2858035,90841.0,90840.0,18.49959585]
[1731820098989,0.1549035,90841.0,90840.0,18.49959585]
[1731820100252,0.1306195,90841.0,90840.0,18.49959585]
[1731820100482,0.0205375,90841.0,90840.0,18.49959585]
[1731820100697,0.110082,90841.0,90840.0,18.49959585]
[1731820101836,0.102082,90841.0,90840.0,18.49959585]
[1731820102071,0.12263635,90841.0,90840.0,18.49959585]
[1731820102288,0.102082,90841.0,90840.0,18.49959585]
[1731820102492,0.12264768,90841.0,90840.0,18.49959585]
[1731820104411,0.15555277,90841.0,90840.0,18.49959585]
[1731820104828,0.13064768,90841.0,90840.0,18.49959585]
[1731820105283,0.02056568,90841.0,90840.0,18.49959585]
[1731820105488,0.13064768,90841.0,90840.0,18.49959585]
[1731820107845,0.13068497,90841.0,90840.0,18.49959585]
[1731820108894,0.13154127,90841.0,90840.0,18.49959585]
[1731820111846,0.1645096,90841.0,90840.0,18.49959585]
[1731820113385,0.16451712,90841.0,90840.0,18.49959585]
[1731820114679,0.2416383,90841.0,90840.0,18.49959585]
[1731820114897,0.29522349,90841.0,90840.0,18.49959585]
[1731820115113,0.47435536,90841.0,90840.0,18.49959585]
[1731820115575,0.48135536,90841.0,90840.0,18.49959585]
[1731820115814,0.58135536,90841.0,90840.0,18.49959585]
[1731820116926,0.70117882,90841.0,90840.0,17.96628251]
[1731820117177,0.70117882,90841.0,90840.0,17.83646436]
[1731820117178,0.85570115,90841.0,90840.0,17.83646436]
[1731820117395,0.72417882,90841.0,90840.0,17.83646436]
[1731820118069,1.08848394,90841.0,90840.0,17.83646436]
[1731820118275,1.0884856,90841.0,90840.0,17.83646436]
[1731820118494,0.87214748,90841.0,90840.0,17.83646436]
[1731820118722,1.08845168,90841.0,90840.0,17.83646436]
[1731820118955,0.72414717,90841.0,90840.0,17.83646436]
[1731820119177,0.75835287,90841.0,90840.0,17.83646436]
[1731820119406,0.72414717,90841.0,90840.0,17.38211136]
[1731820119646,1.00022105,90841.0,90840.0,17.15859436]
[1731820119870,0.96593436,90841.0,90840.0,16.56930102]
[1731820120739,0.96593436,90841.0,90840.0,16.31097782]
[1731820120740,1.1632879,90841.0,90840.0,16.31097782]
[1731820121362,0.60174717,90841.0,90840.0,16.31097782]
[1731820122427,0.63461874,90841.0,90840.0,16.31097782]
[1731820122652,0.60174717,90841.0,90840.0,16.31097782]
[1731820122879,0.58798373,90841.0,90840.0,16.31097782]
[1731820123104,0.62085535,90841.0,90840.0,16.31097782]
[1731820123329,0.58798373,90841.0,90840.0,25.31097782]
[1731820123541,0.58798373,90841.0,90840.0,25.29940866]
[1731820124207,0.62085535,90841.0,90840.0,25.29940866]
[1731820124631,0.67831641,90841.0,90840.0,25.29940866]
[1731820125523,0.57968373,90841.0,90840.0,25.29940866]
[1731820125729,0.57968373,90841.0,90840.0,24.72310017]
[1731820125955,0.67831641,90841.0,90840.0,24.68580827]
[1731820126190,0.57968373,90841.0,90840.0,24.68580827]
[1731820126647,0.67831641,90841.0,90840.0,24.68580827]
[1731820126910,0.67829382,90841.0,90840.0,24.68580827]
[1731820127130,0.67829382,90841.0,90840.0,24.68083139]
[1731820127131,0.57968373,90841.0,90840.0,24.68083139]
[1731820127385,0.67829318,90841.0,90840.0,24.68083139]
[1731820127817,0.57768373,90841.0,90840.0,24.68083139]
[1731820128031,0.67829318,90841.0,90840.0,24.68083139]
[1731820128501,0.57968373,90841.0,90840.0,24.68083139]
[1731820128727,0.67829318,90841.0,90840.0,24.68083139]
[1731820129170,0.49716167,90841.0,90840.0,24.68083139]
[1731820129415,0.27545202,90841.0,90840.0,24.68083139]
[1731820130027,0.27045202,90841.0,90840.0,24.68083139]
[1731820130234,0.24249733,90841.0,90840.0,24.68083139]
[1731820130465,0.24524972,90841.0,90840.0,24.68083139]
[1731820130708,0.34524972,90841.0,90840.0,24.68083139]
[1731820130925,0.34249733,90841.0,90840.0,24.68083139]
[1731820131135,0.34242402,90841.0,90840.0,24.68083139]
[1731820131797,0.33442402,90841.0,90840.0,24.68083139]
[1731820132908,0.36226141,90841.0,90840.0,24.68083139]
[1731820133112,0.32442402,90841.0,90840.0,24.72713139]
[1731820134817,0.32942402,90841.0,90840.0,24.72713139]
[1731820135046,0.3244335,90841.0,90840.0,24.72713139]
[1731820135686,0.35728606,90841.0,90840.0,24.72713139]
[1731820136361,0.14822351,90841.0,90840.0,24.72713139]
[1731820136602,0.14822351,90841.0,90840.0,24.80813139]
[1731820137779,0.05424171,90841.0,90840.0,24.80813139]
[1731820138030,0.02138915,90841.0,90840.0,24.9872629]
[1731820138283,0.02139578,90841.0,90840.0,24.9872629]
[1731820138775,0.13147778,90841.0,90840.0,24.9872629]
[1731820138985,0.0008563,90841.0,90840.0,24.9872629]
[1731820139426,0.0008563,90841.0,90840.0,25.0973459]
[1731820139650,0.1109383,90841.0,90840.0,24.80813139]
[1731820139884,0.13147778,90841.0,90840.0,24.80813139]
[1731820140749,0.13147524,90841.0,90840.0,24.80813139]
[1731820141178,0.16433434,90841.0,90840.0,24.80813139]
[1731820141812,0.13147524,90841.0,90840.0,24.80813139]
[1731820142021,0.02139324,90841.0,90840.0,24.80813139]
[1731820142243,0.13147524,90841.0,90840.0,24.80813139]
[1731820143348,0.24053779,90841.0,90840.0,24.80813139]
[1731820143579,0.2455413,90841.0,90840.0,24.80813139]
[1731820143794,0.2455413,90841.0,90840.0,24.68083139]
[1731820144002,0.28115766,90841.0,90840.0,24.68083139]
[1731820144458,0.31901722,90841.0,90840.0,24.68083139]
[1731820144674,0.13147848,90841.0,90840.0,24.76183139]
[1731820144896,0.13147848,90841.0,90840.0,24.80813139]
[1731820145325,0.13147741,90841.0,90840.0,24.80813139]
[1731820146877,0.1029383,90841.0,90840.0,24.80813139]
[1731820147089,0.12347408,90841.0,90840.0,24.80813139]
[1731820147312,0.23753663,90841.0,90840.0,24.80813139]
[1731820148422,0.12347408,90841.0,90840.0,24.80813139]
[1731820149541,0.23253663,90841.0,90840.0,24.80813139]
[1731820150265,0.26539388,90841.0,90840.0,24.80813139]
[1731820151108,0.27039388,90841.0,90840.0,24.80813139]
[1731820151364,0.27314617,90841.0,90840.0,24.68083139]
[1731820152085,0.2869053,90841.0,90840.0,24.68083139]
[1731820152728,0.31979152,90841.0,90840.0,24.68083139]
[1731820152954,0.38415301,90841.0,90840.0,24.68083139]
[1731820153156,0.40715301,90841.0,90840.0,24.68083139]
[1731820153612,0.41215301,90841.0,90840.0,24.68083139]
[1731820154066,0.41415301,90841.0,90840.0,24.68083139]
[1731820154522,0.41215301,90841.0,90840.0,24.68083139]
[1731820155285,0.41300921,90841.0,90840.0,24.68083139]
[1731820155510,0.41309026,90841.0,90840.0,24.68083139]
[1731820156181,0.41509026,90841.0,90840.0,24.68083139]
[1731820157254,0.51372618,90841.0,90840.0,24.68083139]
[1731820157499,0.41310647,90841.0,90840.0,24.68083139]
[1731820157702,0.38510647,90841.0,90840.0,24.68083139]
[1731820158146,0.34342892,90841.0,90840.0,24.68083139]
[1731820159082,0.36642892,90841.0,90840.0,24.68083139]
[1731820159289,0.36842892,90841.0,90840.0,24.75663139]
[1731820159516,0.36642892,90841.0,90840.0,24.80163139]
[1731820159950,0.36142892,90841.0,90840.0,24.80163139]
[1731820160180,0.34585705,90841.0,90840.0,24.80163139]
[1731820160429,0.34585705,90841.0,90840.0,24.75663139]
[1731820160673,0.34785705,90841.0,90840.0,24.68083139]
[1731820161509,0.52698856,90841.0,90840.0,24.68083139]
[1731820161984,0.51898856,90841.0,90840.0,24.68083139]
[1731820162627,0.51898856,90841.0,90840.0,24.56208401]
[1731820162873,0.91755069,90841.0,90840.0,24.55188502]
[1731820163101,1.16409997,90841.0,90840.0,24.40675329]
[1731820163306,1.1642955,90841.0,90840.0,24.40275329]
[1731820163512,0.91757901,90841.0,90840.0,24.40275329]
[1731820163749,0.91757901,90841.0,90840.0,24.28798129]
[1731820163750,1.81824605,90841.0,90840.0,24.28798129]
[1731820163944,1.81824605,90841.0,90840.0,24.26258024]
[1731820163945,1.57154156,90841.0,90840.0,24.26258024]
[1731820164150,1.57154156,90841.0,90840.0,24.21239124]
[1731820164370,1.46247901,90841.0,90840.0,24.2090361]
[1731820164803,1.46247901,90841.0,90840.0,22.9897161]
[1731820165032,1.70916865,90841.0,90840.0,22.9897161]
[1731820165240,1.42818089,90841.0,90840.0,22.9597161]
[1731820166846,1.7556197,90841.0,90840.0,22.9597161]
[1731820167048,1.7556197,90841.0,90840.0,22.93291431]
[1731820167259,1.50893006,90841.0,90840.0,22.92564987]
[1731820167479,1.50893006,90841.0,90840.0,22.88573987]
[1731820167715,1.5087743,90841.0,90840.0,22.84888342]
[1731820167920,1.5087743,90841.0,90840.0,22.80874342]
[1731820168221,1.52931522,90841.0,90840.0,22.80874342]
[1731820168444,1.44856605,90841.0,90840.0,22.80874342]
[1731820168877,1.44856605,90841.0,90840.0,22.78482842]
[1731820169927,1.42802513,90841.0,90840.0,22.78482842]
[1731820170132,1.44856155,90841.0,90840.0,22.78482842]
[1731820170334,1.44856155,90841.0,90840.0,22.70022842]
[1731820170573,1.44856155,90841.0,90840.0,22.55655542]
[1731820170574,1.51287824,90841.0,90840.0,22.55655542]
[1731820170799,1.51287824,90841.0,90840.0,22.53436542]
[1731820171263,1.48278538,90841.0,90840.0,22.53436542]
[1731820171740,1.69504052,90841.0,90840.0,22.53436542]
[1731820171971,1.59847878,90841.0,90840.0,22.53436542]
[1731820172184,1.57794236,90841.0,90840.0,22.53276187]
[1731820172408,1.54372513,90841.0,90840.0,22.53276187]
[1731820172866,1.79017986,90841.0,90840.0,22.53276187]
[1731820173587,1.54372513,90841.0,90840.0,22.53276187]
[1731820173813,1.79017986,90841.0,90840.0,22.53276187]
[1731820174027,1.55507257,90841.0,90840.0,22.53276187]
[1731820174474,1.83574517,90841.0,90840.0,22.53276187]
[1731820174933,1.55507257,90841.0,90840.0,22.53276187]
[1731820175568,1.57794206,90841.0,90840.0,22.53276187]
[1731820175769,1.82439679,90841.0,90840.0,22.53276187]
[1731820175942,1.57794206,90841.0,90840.0,22.53276187]
[1731820176151,1.57794127,90841.0,90840.0,22.53276187]
[1731820176553,1.54372513,90841.0,90840.0,22.53276187]
[1731820177012,1.54349517,90841.0,90840.0,22.53276187]
[1731820177233,1.54349517,90841.0,90840.0,22.41512187]
[1731820177634,1.57571805,90841.0,90840.0,22.41512187]
[1731820178415,1.57771805,90841.0,90840.0,22.41512187]
[1731820178625,1.57571805,90841.0,90840.0,22.38201187]
[1731820178785,1.57771805,90841.0,90840.0,22.34172187]
[1731820179193,1.63862533,90841.0,90840.0,22.32439147]
[1731820179401,1.57771805,90841.0,90840.0,22.22946877]
[1731820180046,1.82401642,90841.0,90840.0,22.22946877]
[1731820180271,1.59827319,90841.0,90840.0,22.22946877]
[1731820180699,1.84455702,90841.0,90840.0,22.22346877]
[1731820181159,1.59827319,90841.0,90840.0,22.20646877]
[1731820181388,1.62196863,90841.0,90840.0,22.20271821]
[1731820181589,1.62197356,90841.0,90840.0,22.19145465]
[1731820181811,1.59777856,90841.0,90840.0,22.19145465]
[1731820182018,1.84405338,90841.0,90840.0,22.19145465]
[1731820182849,1.59777856,90841.0,90840.0,22.19145465]
[1731820183101,1.84405338,90841.0,90840.0,22.19145465]
[1731820183313,1.84405338,90841.0,90840.0,22.18295465]
[1731820183540,1.59777856,90841.0,90840.0,22.18295465]
[1731820183760,1.48207856,90841.0,90840.0,22.18295465]
[1731820183926,1.6790912,90841.0,90840.0,22.18295465]
[1731820184340,1.33352342,90841.0,90840.0,22.18295465]
[1731820184624,1.33352342,90841.0,90840.0,22.23035465]
[1731820184625,0.76152709,90841.0,90840.0,22.23035465]
[1731820184848,0.86004038,90841.0,90840.0,22.23035465]
[1731820185432,0.21162709,90841.0,90840.0,22.23035465]
[1731820185645,0.2193796,90841.0,90840.0,22.30985465]
[1731820185813,0.2143796,90841.0,90840.0,22.30985465]
[1731820186028,0.2123796,90841.0,90840.0,22.30985465]
[1731820186407,0.2173796,90841.0,90840.0,22.30985465]
[1731820186617,0.2193796,90841.0,90840.0,22.30985465]
[1731820187714,0.3353796,90841.0,90840.0,22.30985465]
[1731820187936,0.33262709,90841.0,90840.0,22.30985465]
[1731820188124,0.30962709,90841.0,90840.0,22.30985465]
[1731820188570,0.31462709,90841.0,90840.0,22.30985465]
[1731820188986,0.30962709,90841.0,90840.0,22.30985465]
[1731820189700,0.10906255,90841.0,90840.0,22.30795465]
[1731820190554,0.03096255,90841.0,90840.0,22.30795465]
[1731820190755,0.00275223,90848.0,90844.0,0.125]
[1731820190969,0.04496066,90847.0,90845.0,0.125]
[1731820191185,0.04496066,90847.0,90846.0,0.0774]
[1731820191815,0.03696066,90847.0,90846.0,0.0774]
[1731820193506,0.14703566,90847.0,90846.0,0.0774]
[1731820193914,0.14978774,90847.0,90846.0,0.0774]
[1731820194540,0.03696066,90847.0,90846.0,0.0774]
[1731820195398,0.00275205,90851.0,90846.0,0.187475]
[1731820195622,0.00275205,90851.0,90847.0,0.0774]
[1731820195623,0.03697742,90850.0,90847.0,0.0774]
[1731820196271,0.00275205,90851.0,90847.0,0.0774]
[1731820196272,0.00275205,90851.0,90850.0,0.110071]
[1731820196476,0.0008555,90853.0,90852.0,0.235069]
[1731820196686,0.03782663,90853.0,90852.0,0.235069]
[1731820196942,0.03782663,90853.0,90852.0,0.125]
[1731820197173,0.0008555,90853.0,90852.0,0.235069]
[1731820197599,0.0008555,90853.0,90852.0,0.125]
[1731820197803,0.0008555,90853.0,90852.0,0.235069]
[1731820198013,0.00061605,90853.0,90852.0,0.235069]
[1731820198953,0.00061605,90853.0,90852.0,0.125]
[1731820199159,0.00061605,90853.0,90852.0,0.235069]
[1731820199599,0.00061605,90853.0,90852.0,0.125]
[1731820199833,0.11068305,90853.0,90852.0,0.125]
[1731820200313,0.00061605,90853.0,90852.0,0.125]
[1731820200523,0.11068305,90853.0,90852.0,0.125]
[1731820206808,0.10268305,90853.0,90852.0,0.125]
[1731820207004,0.00275181,90854.0,90852.0,0.125]
[1731820207239,0.110067,90853.0,90852.0,0.125]
[1731820207476,0.11281883,90853.0,90852.0,0.125]
[1731820208559,0.110067,90853.0,90852.0,0.125]
[1731820211484,0.00275182,90856.0,90852.0,0.125]
[1731820211713,0.0008554,90862.0,90861.0,0.242958]
[1731820212132,0.0008554,90862.0,90861.0,0.1329]
[1731820212363,0.0008554,90862.0,90861.0,0.242958]
[1731820212573,0.0008554,90862.0,90861.0,0.1329]
[1731820212785,0.0008554,90862.0,90861.0,0.242958]
[1731820213270,0.0008554,90862.0,90856.0,0.220128]
[1731820213480,0.0008554,90862.0,90857.0,0.00343891]
[1731820213688,0.0008554,90862.0,90861.0,0.110058]
[1731820213908,0.0008554,90862.0,90861.0,0.00343891]
[1731820214376,0.1109124,90862.0,90861.0,0.00343891]
[1731820214579,0.00360682,90862.0,90852.0,0.0017122]
[1731820214786,0.110062,90858.0,90853.0,0.00343877]
[1731820214998,0.00275165,90857.0,90854.0,0.00343877]
[1731820215415,0.00275165,90857.0,90855.0,0.00343877]
[1731820215845,0.0008554,90862.0,90856.0,0.00343877]
[1731820215846,0.11281065,90860.0,90856.0,0.00343877]
[1731820216060,0.11281065,90860.0,90857.0,0.00343877]
[1731820216216,0.00275165,90860.0,90858.0,0.13633877]
[1731820216412,0.00275165,90860.0,90859.0,0.00343877]
[1731820216882,0.00360699,90862.0,90859.0,0.00343877]
[1731820217081,0.00360699,90862.0,90858.0,0.1329]
[1731820217082,0.11006,90859.0,90858.0,0.1329]
[1731820217284,0.11006,90859.0,90858.0,0.13633881]
[1731820218626,0.11006,90859.0,90858.0,0.08663881]
[1731820219105,0.0027516,90860.0,90852.0,0.0017122]
[1731820219400,0.00275165,90859.0,90853.0,0.00343904]
[1731820219626,0.00275165,90859.0,90852.0,0.0017122]
[1731820219627,0.110066,90855.0,90854.0,0.00343904]
[1731820219904,0.0008554,90862.0,90854.0,0.00343904]
[1731820220092,0.0008554,90862.0,90857.0,0.110062]
[1731820220306,0.0008554,90862.0,90858.0,0.00343904]
[1731820220307,0.11006,90859.0,90858.0,0.00343904]
[1731820220697,0.220116,90861.0,90858.0,0.00343904]
[1731820220698,0.110059,90861.0,90858.0,0.00343904]
[1731820220903,0.0008554,90862.0,90858.0,0.00343904]
[1731820221146,0.00360702,90862.0,90859.0,0.00343904]
[1731820221357,0.00360702,90862.0,90855.0,0.0763]
[1731820221358,0.110058,90861.0,90860.0,0.00343904]
[1731820221795,0.102058,90861.0,90860.0,0.00343904]
[1731820222267,0.110064,90856.0,90855.0,0.0763]
[1731820222484,0.13065313,90856.0,90855.0,0.07973884]
[1731820223118,0.02058913,90856.0,90855.0,0.0763]
[1731820223958,0.02058913,90856.0,90855.0,0.078012]
[1731820224429,0.13065313,90856.0,90855.0,0.078012]
[1731820224859,0.02058913,90856.0,90855.0,0.078012]
[1731820225561,0.000856,90861.0,90858.0,0.11006]
[1731820225797,0.000856,90861.0,90855.0,0.078012]
[1731820226043,0.000856,90861.0,90860.0,0.110059]
[1731820226250,0.000856,90861.0,90860.0,0.00343877]
[1731820226690,0.000856,90861.0,90860.0,0.11349777]
[1731820226906,0.000856,90861.0,90860.0,0.00343877]
[1731820227117,0.000856,90861.0,90860.0,0.11349777]
[1731820227785,0.000856,90861.0,90860.0,0.16319777]
[1731820227992,0.000856,90861.0,90860.0,0.16869948]
[1731820228461,0.000856,90861.0,90860.0,0.24499948]
[1731820231316,0.000856,90861.0,90860.0,0.26799948]
[1731820231787,0.000856,90861.0,90860.0,0.27057355]
[1731820232001,0.000856,90861.0,90860.0,0.3796361]
[1731820232262,0.0008554,90862.0,90860.0,0.3796361]
[1731820232263,0.0008554,90862.0,90861.0,0.133058]
[1731820232500,0.0008554,90862.0,90861.0,0.37925929]
[1731820232733,0.0008554,90862.0,90861.0,0.38176954]
[1731820233619,0.0008554,90862.0,90861.0,0.49176954]
[1731820233858,0.0008554,90862.0,90861.0,0.48676954]
[1731820234798,0.0008554,90862.0,90861.0,0.37270699]
[1731820235026,0.0008554,90862.0,90861.0,0.24970699]
[1731820235262,0.0008554,90862.0,90861.0,0.01144899]
[1731820235263,0.1109124,90862.0,90861.0,0.01144899]
[1731820235671,0.1109124,90862.0,90861.0,0.00893874]
[1731820235892,0.1109124,90862.0,90861.0,0.00343798]
[1731820236965,0.1029124,90862.0,90861.0,0.00343798]
[1731820237614,0.220114,90862.0,90855.0,0.001712]
[1731820237817,0.22286757,90861.0,90856.0,0.00343884]
[1731820238024,0.22286757,90861.0,90855.0,0.001712]
[1731820238254,0.110061,90858.0,90856.0,0.00343883]
[1731820238516,0.220116,90861.0,90855.0,0.001712]
[1731820238774,0.110064,90856.0,90855.0,0.001712]
[1731820238971,0.110064,90856.0,90855.0,0.00515083]
[1731820240077,0.110064,90856.0,90855.0,0.00767186]
[1731820240341,0.110064,90856.0,90855.0,0.00515083]
[1731820243320,0.110069,90853.0,90844.0,0.110077]
[1731820243586,0.16524829,90863.0,90831.0,0.220188]
[1731820243587,0.16524829,90863.0,90855.0,0.00252155]
[1731820243813,0.220118,90860.0,90845.0,0.110076]
[1731820244044,0.00275166,90859.0,90845.0,0.110076]
[1731820244256,0.330177,90860.0,90846.0,0.00252284]
[1731820244473,0.110069,90852.0,90846.0,0.00252284]
[1731820244713,0.110069,90852.0,90845.0,0.110077]
[1731820244948,0.110071,90850.0,90849.0,0.03]
[1731820245163,0.189971,90850.0,90849.0,0.03]
[1731820245368,0.35033355,90850.0,90849.0,0.03]
[1731820245577,0.23826255,90850.0,90840.0,22.18295465]
[1731820245800,0.110082,90841.0,90840.0,22.18295465]
[1731820246721,0.30104455,90841.0,90840.0,22.18295465]
[1731820247155,0.29904455,90841.0,90840.0,22.18295465]
[1731820247421,0.30104455,90841.0,90840.0,22.18295465]
[1731820247634,0.30604455,90841.0,90840.0,22.18295465]
[1731820248532,0.40404455,90841.0,90840.0,22.18295465]
[1731820248752,0.45614455,90841.0,90840.0,22.18295465]
[1731820251902,0.44814455,90841.0,90840.0,22.18295465]
[1731820252548,0.44614455,90841.0,90840.0,22.18295465]
[1731820254368,0.44814455,90841.0,90840.0,22.18295465]
[1731820255637,0.46863954,90841.0,90840.0,22.18295465]
[1731820256270,0.44814455,90841.0,90840.0,22.18295465]
[1731820256488,0.46863954,90841.0,90840.0,22.18295465]
[1731820256693,0.44814455,90841.0,90840.0,22.18295465]
[1731820256915,0.46863954,90841.0,90840.0,22.18295465]
[1731820257335,0.46663954,90841.0,90840.0,22.18295465]
[1731820257789,0.46863954,90841.0,90840.0,22.18295465]
[1731820258000,0.49163954,90841.0,90840.0,22.18295465]
[1731820258274,0.49163954,90841.0,90840.0,22.18551165]
[1731820260236,0.47114455,90841.0,90840.0,22.18551165]
[1731820261653,0.52438941,90841.0,90840.0,22.18551165]
[1731820261888,0.47114455,90841.0,90840.0,22.18551165]
[1731820262098,0.50391053,90841.0,90840.0,22.18551165]
[1731820264202,0.47114455,90841.0,90840.0,22.18551165]
[1731820264636,0.47114455,90841.0,90840.0,21.63491415]
[1731820266138,0.47114455,90841.0,90840.0,21.60240331]
[1731820266778,0.46314455,90841.0,90840.0,21.60240331]
[1731820267373,0.51644782,90841.0,90840.0,21.60240331]
[1731820269739,0.516452,90841.0,90840.0,21.60240331]
[1731820270381,0.5173083,90841.0,90840.0,21.60240331]
[1731820270699,0.5173083,90841.0,90840.0,21.58602262]
[1731820272954,0.5173083,90841.0,90840.0,21.47746135]
[1731820273164,0.51735971,90841.0,90840.0,21.45544435]
[1731820273443,0.51735971,90841.0,90840.0,21.4528387]
[1731820274019,0.49435971,90841.0,90840.0,21.4528387]
[1731820274233,0.36935971,90841.0,90840.0,21.4528387]
[1731820274457,0.33652349,90841.0,90840.0,21.4528387]
[1731820274683,0.33452349,90841.0,90840.0,21.4528387]
[1731820274896,0.45214418,90841.0,90840.0,21.4528387]
[1731820275100,0.45414418,90841.0,90840.0,21.4528387]
[1731820276409,0.45214418,90841.0,90840.0,21.4528387]
[1731820276649,0.45414418,90841.0,90840.0,21.4528387]
[1731820276877,0.51576184,90841.0,90840.0,21.27562443]
[1731820277558,0.36945676,90841.0,90840.0,21.25116422]
[1731820277774,0.69929511,90841.0,90840.0,21.22914722]
[1731820277981,0.69929511,90841.0,90840.0,20.52468675]
[1731820278194,0.69729511,90841.0,90840.0,20.52468675]
[1731820278623,0.66436184,90841.0,90840.0,20.52468675]
[1731820278829,0.66636184,90841.0,90840.0,20.52468675]
[1731820279461,0.69930592,90841.0,90840.0,20.50139077]
[1731820279737,0.69930592,90841.0,90840.0,20.28568268]
[1731820279738,0.75490175,90841.0,90840.0,20.28568268]
[1731820279998,0.84269846,90841.0,90840.0,19.33067512]
[1731820280201,0.84269846,90841.0,90840.0,19.22355677]
[1731820280437,0.73363591,90841.0,90840.0,19.09715529]
[1731820280640,0.73363591,90841.0,90840.0,19.06921872]
[1731820281076,0.52907291,90841.0,90840.0,19.06921872]
[1731820281291,0.44677291,90841.0,90840.0,19.06921872]
[1731820281727,0.44877291,90841.0,90840.0,19.06921872]
[1731820281927,0.44677291,90841.0,90840.0,19.06921872]
[1731820282344,0.54677291,90841.0,90840.0,19.06921872]
[1731820282562,0.4932392,90841.0,90840.0,19.06921872]
[1731820282759,0.4952392,90841.0,90840.0,19.06921872]
[1731820283023,0.4952392,90841.0,90840.0,18.91748541]
[1731820283544,0.55015038,90841.0,90840.0,18.91748541]
[1731820283958,0.51583537,90841.0,90840.0,18.91748541]
[1731820284167,0.33659702,90841.0,90840.0,18.91748541]
[1731820284540,0.31600085,90841.0,90840.0,18.91748541]
[1731820286995,0.31400085,90841.0,90840.0,18.91748541]
[1731820287158,0.31600085,90841.0,90840.0,18.91748541]
[1731820289506,0.30400085,90841.0,90840.0,18.91748541]
[1731820294858,0.30600085,90841.0,90840.0,18.91748541]
[1731820295945,0.31400085,90841.0,90840.0,18.91748541]
[1731820296080,0.31600085,90841.0,90840.0,18.91748541]
[1731820296286,0.91255603,90841.0,90840.0,18.91748541]
[1731820296495,0.715055,90841.0,90840.0,18.91748541]
[1731820296708,0.707055,90841.0,90840.0,18.91748541]
[1731820296933,0.34230739,90841.0,90840.0,18.71724287]
[1731820297167,0.45622118,90841.0,90840.0,18.71724287]
[1731820297557,0.30800085,90841.0,90840.0,18.71724287]
[1731820298982,0.33100085,90841.0,90840.0,18.71724287]
[1731820299223,0.73010575,90841.0,90840.0,18.71724287]
[1731820300588,0.36530982,90841.0,90840.0,18.71724287]
[1731820300788,0.85486756,90841.0,90840.0,18.71724287]
[1731820302653,0.85486756,90841.0,90840.0,18.65583621]
[1731820302865,0.85486756,90841.0,90840.0,18.56776821]
[1731820303311,0.85486756,90841.0,90840.0,18.46556466]
[1731820303525,0.85486756,90841.0,90840.0,18.35547966]
[1731820303733,0.85486756,90841.0,90840.0,18.31708966]
[1731820304372,0.85486756,90841.0,90840.0,18.27305566]